bitfinex-derivatives/quotes_SOLF0:USTF0_20250518
["timestamp","ask_amount","ask_price","bid_price","bid_amount"]
[1747592797749,97.5,169.99,169.93,5.8827]
[1747592798045,97.5,169.99,169.88,97.94]
[1747592798346,97.94,170.0,169.88,97.94]
[1747592798546,1.9994,170.04,169.88,97.94]
[1747592798843,1.9994,170.04,169.98,5.881]
[1747592799042,197.1317,170.05,169.94,97.92]
[1747592799237,97.36,170.05,169.95,101.8255]
[1747592799437,508.44,170.1,169.95,101.8255]
[1747592799847,195.24,170.11,169.95,610.1855]
[1747592800352,201.1168,170.11,169.95,610.1855]
[1747592800654,201.1168,170.11,169.96,195.18]
[1747592800655,195.24,170.11,169.96,195.18]
[1747592800945,5.8787,170.05,169.97,5.8813]
[1747592801141,23.14107755,170.09,169.95,608.2133]
[1747592801343,3.9553,170.04,169.95,608.2133]
[1747592801540,1.9425,170.04,169.97,5.8813]
[1747592801740,1.9425,170.04,169.95,608.2133]
[1747592802642,5.8797,170.02,169.96,5.8817]
[1747592803140,1.9425,170.04,169.95,99.8533]
[1747592803448,97.22,170.05,169.95,99.8533]
[1747592803650,2.0128,170.08,169.95,99.8533]
[1747592803843,99.1128,170.08,169.95,99.8533]
[1747592804639,23.14107755,170.05,169.95,97.92]
[1747592804844,5.8809,169.99,169.94,5.8821]
[1747592805246,97.04,170.02,169.92,2.008]
[1747592805546,97.04,170.02,169.9,196.8437]
[1747592805947,5.8807,169.99,169.94,5.8821]
[1747592806951,97.04,170.02,169.9,99.7837]
[1747592807158,23.14107755,170.01,169.88,101.8906]
[1747592807453,97.04,170.02,169.93,5.8827]
[1747592807454,5.8813,169.98,169.93,5.8827]
[1747592807651,120.18107755,170.02,169.93,5.8827]
[1747592807947,5.8813,169.98,169.93,5.8827]
[1747592808147,120.18107755,170.02,169.93,5.8827]
[1747592808351,120.18107755,170.02,169.88,99.9293]
[1747592808752,120.18107755,170.02,169.9,5.8835]
[1747592809055,5.8826,169.94,169.9,5.8835]
[1747592809256,120.18107755,170.02,169.9,5.8835]
[1747592809462,120.18107755,170.02,169.88,99.9293]
[1747592809747,5.8823,169.95,169.88,99.9293]
[1747592809954,5.8823,169.95,169.9,5.8835]
[1747592810156,5.8819,169.96,169.88,99.9293]
[1747592810449,120.18107755,170.02,169.88,99.9293]
[1747592810654,97.04,170.02,169.88,99.9293]
[1747592811651,5.8814,169.97,169.92,5.883]
[1747592811861,23.14107755,170.01,169.88,99.9293]
[1747592812352,23.14107755,170.01,169.89,97.9]
[1747592812553,97.04,170.02,169.89,97.9]
[1747592813052,5.8806,170.0,169.89,97.9]
[1747592813360,97.04,170.02,169.89,97.9]
[1747592813661,97.04,170.02,169.94,5.8823]
[1747592813850,97.04,170.02,169.89,97.9]
[1747592814553,28.9425,170.09,169.89,97.9]
[1747592814759,1.17598635,170.07,169.91,23.14107755]
[1747592814957,1.17598635,170.07,169.95,23.14107755]
[1747592815260,1.17598635,170.07,169.96,194.46]
[1747592815458,1.17598635,170.07,169.97,2.037]
[1747592815653,1.17598635,170.07,169.97,510.277]
[1747592815853,1.17598635,170.07,170.06,5.8783]
[1747592816056,1.17598635,170.07,170.06,103.7783]
[1747592816458,1.17598635,170.07,170.06,97.9]
[1747592816861,1.17598635,170.07,170.01,1.9612]
[1747592817061,1.17598635,170.07,170.01,7.8411]
[1747592817361,1.17598635,170.07,170.01,1.9612]
[1747592818260,1.17598635,170.07,170.05,5.8783]
[1747592818762,1.17598635,170.07,170.01,1.9612]
[1747592819660,1.17598635,170.07,169.97,2.037]
[1747592819861,2.045,170.06,169.97,2.037]
[1747592820059,2.045,170.06,169.95,96.3]
[1747592820060,2.045,170.06,169.95,5.8818]
[1747592820361,5.8799,170.02,169.94,96.4]
[1747592820564,119.42107755,170.04,169.94,102.2821]
[1747592820860,119.42107755,170.04,169.94,96.4]
[1747592821865,119.42107755,170.04,169.94,5.8823]
[1747592822164,96.28,170.04,169.91,96.4]
[1747592822456,5.8796,170.03,169.91,96.4]
[1747592823062,5.8799,170.02,169.91,96.4]
[1747592823261,96.28,170.04,169.91,96.4]
[1747592823458,2.045,170.06,169.91,96.4]
[1747592823660,7.9233,170.06,170.01,5.88]
[1747592823860,7.9233,170.06,169.95,96.12]
[1747592824166,2.045,170.06,169.96,1.8643]
[1747592824359,2.045,170.06,169.97,102.2813]
[1747592824966,5.879,170.04,169.97,102.2813]
[1747592825166,2.045,170.06,169.97,96.4]
[1747592825465,1.17598635,170.07,169.97,96.4]
[1747592825658,1.17598635,170.07,169.98,2.0289]
[1747592826059,1.17598635,170.07,169.99,2.029]
[1747592827064,1.17598635,170.07,170.02,5.8795]
[1747592827364,1.17598635,170.07,169.99,2.029]
[1747592829159,96.4,170.13,169.99,510.089]
[1747592829363,1.17557162,170.13,169.99,510.089]
[1747592829666,5.8763,170.12,170.06,5.878]
[1747592829967,1.17557162,170.13,170.04,96.38]
[1747592830973,5.8771,170.1,170.04,5.8789]
[1747592831268,1.17557162,170.13,170.01,96.38]
[1747592831567,5.8763,170.12,170.07,5.8777]
[1747592831871,1.17557162,170.13,170.01,96.38]
[1747592832170,1.17557162,170.13,169.99,605.829]
[1747592832171,5.8775,170.09,170.03,5.8792]
[1747592832366,98.2746,170.12,170.01,96.38]
[1747592832564,23.14107755,170.11,170.01,96.38]
[1747592832763,5.8776,170.08,170.03,5.879]
[1747592832963,95.66,170.09,170.01,96.38]
[1747592833465,1.17557162,170.13,170.02,95.6]
[1747592834764,1.17557162,170.13,170.09,5.8772]
[1747592835067,1.17557162,170.13,170.01,96.38]
[1747592835467,5.8766,170.11,170.05,5.8783]
[1747592835967,1.17557162,170.13,170.01,96.38]
[1747592836670,5.8772,170.09,170.04,5.8787]
[1747592837072,5.8772,170.09,170.05,5.8786]
[1747592837280,1.17557162,170.13,170.01,96.38]
[1747592837870,1.17557162,170.13,170.08,5.8773]
[1747592838164,1.17557162,170.13,170.01,96.38]
[1747592839159,5.8748,170.16,170.01,96.38]
[1747592839566,5.8748,170.16,170.1,5.8766]
[1747592839765,5.8748,170.16,170.07,96.36]
[1747592839967,5.8748,170.16,170.11,5.8765]
[1747592840167,124.2746,170.17,170.11,5.8765]
[1747592840371,124.2746,170.17,170.07,96.36]
[1747592840573,130.1493,170.17,170.11,5.8763]
[1747592840773,97.2746,170.17,170.11,5.8763]
[1747592840974,97.2746,170.17,170.07,96.36]
[1747592841174,103.1493,170.17,170.07,96.36]
[1747592841374,95.38,170.17,170.07,96.36]
[1747592841672,95.38,170.17,170.08,5.7695]
[1747592842773,102.2338,170.19,170.08,5.7695]
[1747592842974,191.48,170.19,170.08,5.7695]
[1747592843571,23.14107755,170.16,170.03,96.34]
[1747592843775,14.20741645,170.14,170.0,5.8184]
[1747592843975,193.2966,170.13,170.0,5.8184]
[1747592844377,1.8538,170.12,170.0,5.8184]
[1747592844571,1.8538,170.12,170.08,5.8774]
[1747592844773,1.8766,170.13,170.0,5.8184]
[1747592846273,1.8766,170.13,170.09,5.8771]
[1747592847088,1.8766,170.13,170.1,5.8767]
[1747592847288,1.9746,170.15,170.04,96.34]
[1747592847987,100.7748,170.16,170.04,96.34]
[1747592848188,100.7748,170.16,170.11,5.8763]
[1747592848488,100.7748,170.16,170.04,96.34]
[1747592848683,94.9,170.16,170.04,96.34]
[1747592848889,98.1938,170.17,170.05,94.84]
[1747592849092,96.34,170.17,170.05,94.84]
[1747592850185,24.99651302,170.23,170.05,94.84]
[1747592850385,96.6689,170.23,170.16,5.8745]
[1747592850585,1.9089,170.23,170.11,94.86]
[1747592850785,96.6489,170.23,170.11,94.86]
[1747592850982,96.6489,170.23,170.01,23.08761302]
[1747592851286,23.08761302,170.19,170.02,189.58]
[1747592851485,96.6489,170.23,170.02,189.58]
[1747592851992,5.8731,170.21,170.04,11.7577]
[1747592852288,94.68,170.22,170.02,189.58]
[1747592852488,100.5528,170.22,170.17,5.8743]
[1747592852678,100.5528,170.22,170.11,94.86]
[1747592852882,100.5528,170.22,170.12,1.9229]
[1747592853090,5.8735,170.2,170.12,1.9229]
[1747592853289,94.68,170.22,170.12,1.9229]
[1747592853792,5.8738,170.19,170.12,1.9229]
[1747592853980,94.68,170.22,170.12,1.9229]
[1747592854295,100.5528,170.22,170.12,1.9229]
[1747592854692,94.68,170.22,170.12,1.9229]
[1747592855192,94.68,170.22,170.15,5.8751]
[1747592855392,94.68,170.22,170.12,1.9229]
[1747592855593,1.9089,170.23,170.12,1.9229]
[1747592855787,96.3889,170.23,170.12,1.9229]
[1747592855988,94.48,170.23,170.12,1.9229]
[1747592856188,94.86,170.24,170.12,1.9229]
[1747592856493,100.7323,170.24,170.19,5.8735]
[1747592856795,5.8727,170.23,170.12,1.9229]
[1747592856993,94.86,170.24,170.12,1.9229]
[1747592857699,96.3625,170.27,170.12,1.9229]
[1747592858387,94.38,170.27,170.12,1.9229]
[1747592858798,99.48203665,170.28,170.12,1.9229]
[1747592859000,5.8711,170.27,170.12,1.9229]
[1747592859500,5.8711,170.27,170.21,5.8728]
[1747592859700,5.8711,170.27,170.17,94.84]
[1747592860002,5.8714,170.26,170.17,94.84]
[1747592860889,5.871,170.27,170.17,94.84]
[1747592861090,94.84,170.29,170.17,94.84]
[1747592861398,100.7104,170.29,170.24,5.8718]
[1747592861791,94.84,170.29,170.18,1.8878]
[1747592861993,100.0092,170.33,170.19,1.9945]
[1747592862300,194.12203665,170.35,170.19,509.6345]
[1747592862602,5.16203665,170.35,170.21,23.08761302]
[1747592862792,5.16203665,170.35,170.22,96.0903]
[1747592863103,5.16203665,170.35,170.23,94.8]
[1747592863301,5.16203665,170.35,170.33,5.8687]
[1747592863496,5.16203665,170.35,170.29,94.8]
[1747592863702,5.16203665,170.35,170.3,94.8]
[1747592864100,5.16203665,170.35,170.27,94.8]
[1747592864601,5.16203665,170.35,170.26,1.8874]
[1747592864900,99.16203665,170.35,170.26,96.6874]
[1747592865593,94.0,170.35,170.26,96.6874]
[1747592865796,94.0,170.35,170.3,5.8699]
[1747592866101,94.0,170.35,170.26,96.6874]
[1747592866403,93.9,170.39,170.26,96.6874]
[1747592867806,5.8673,170.38,170.33,5.8689]
[1747592868202,93.9,170.39,170.33,5.8689]
[1747592868403,93.9,170.39,170.26,96.6874]
[1747592868707,5.8676,170.37,170.26,96.6874]
[1747592869005,5.8673,170.38,170.33,5.8689]
[1747592869506,93.9,170.39,170.26,96.6874]
[1747592869507,93.9,170.39,170.35,5.8682]
[1747592869803,93.9,170.39,170.26,96.6874]
[1747592870001,5.8677,170.37,170.32,5.869]
[1747592870309,93.9,170.39,170.26,96.6874]
[1747592870708,99.767,170.39,170.34,5.8684]
[1747592870907,99.767,170.39,170.26,96.6874]
[1747592871307,99.767,170.39,170.34,5.8684]
[1747592871495,93.62,170.39,170.26,96.6874]
[1747592871701,93.62,170.39,170.35,5.868]
[1747592872107,7.7836,170.41,170.35,5.868]
[1747592872308,93.58,170.4,170.35,5.868]
[1747592872697,99.4466,170.4,170.35,5.868]
[1747592872902,93.58,170.4,170.26,96.6874]
[1747592873102,1.9171,170.41,170.26,96.6874]
[1747592873408,95.5599,170.43,170.27,14.16338904]
[1747592873608,101.4255,170.43,170.27,14.16338904]
[1747592873809,101.4255,170.43,170.28,1.9173]
[1747592874109,101.3855,170.43,170.37,5.8675]
[1747592874613,5.866,170.42,170.37,5.8675]
[1747592874810,93.44,170.42,170.33,94.76]
[1747592875111,5.8668,170.4,170.33,94.76]
[1747592875312,5.8668,170.4,170.35,5.8682]
[1747592875705,93.38,170.41,170.33,94.76]
[1747592875906,93.38,170.41,170.36,5.8676]
[1747592876198,93.38,170.41,170.28,1.9173]
[1747592876411,107.54338904,170.41,170.32,5.8692]
[1747592876611,5.8685,170.35,170.27,94.74]
[1747592876914,94.74,170.39,170.27,94.74]
[1747592877106,2.0406,170.38,170.27,94.74]
[1747592877610,2.0143,170.37,170.31,5.8693]
[1747592877802,5.8687,170.34,170.27,94.74]
[1747592878003,5.8687,170.34,170.31,5.8696]
[1747592878202,5.8687,170.34,170.27,94.74]
[1747592878815,99.1483,170.35,170.27,94.74]
[1747592879110,93.28,170.35,170.27,94.74]
[1747592879312,93.28,170.35,170.3,5.8697]
[1747592879614,93.28,170.35,170.27,94.74]
[1747592879806,1.9454,170.34,170.27,94.74]
[1747592880007,93.16,170.4,170.27,94.74]
[1747592880313,1.9454,170.38,170.27,94.74]
[1747592880610,5.8684,170.35,170.27,94.74]
[1747592880812,1.9454,170.38,170.27,94.74]
[1747592881114,5.8687,170.34,170.3,5.8697]
[1747592881416,93.26,170.37,170.27,94.74]
[1747592881604,5.8688,170.34,170.3,5.8696]
[1747592881810,98.9688,170.34,170.27,94.74]
[1747592882013,93.1,170.34,170.27,94.74]
[1747592882314,93.1,170.34,170.31,5.8694]
[1747592882514,93.1,170.34,170.27,94.74]
[1747592882815,93.04,170.38,170.27,187.76]
[1747592883029,93.26,170.42,170.27,187.76]
[1747592883309,5.8668,170.4,170.27,187.76]
[1747592883509,186.28,170.42,170.23,1.9173]
[1747592883716,186.28,170.42,170.27,93.24]
[1747592883904,5.8682,170.36,170.31,5.8694]
[1747592884111,98.8282,170.36,170.27,93.24]
[1747592884611,1.8839,170.43,170.29,14.16338904]
[1747592884820,1.8839,170.43,170.3,600.1]
[1747592885115,1.9707,170.45,170.3,600.1]
[1747592885316,94.8907,170.45,170.31,3.8037]
[1747592885513,6.87140838,170.5,170.33,14.16338904]
[1747592885707,105.61460838,170.5,170.34,93.24]
[1747592885911,99.75140838,170.5,170.34,93.24]
[1747592886106,99.75140838,170.5,170.35,2.0339]
[1747592886311,99.75140838,170.5,170.36,92.86]
[1747592886617,6.87140838,170.5,170.46,5.8645]
[1747592886917,6.87140838,170.5,170.46,93.24]
[1747592887117,6.87140838,170.5,170.46,99.1045]
[1747592887521,8.38e-06,170.5,170.46,93.24]
[1747592887819,8.38e-06,170.5,170.49,5.8634]
[1747592888212,5.17411672,170.59,170.46,93.24]
[1747592888919,5.17411672,170.59,170.54,5.8614]
[1747592889621,5.17411672,170.59,170.52,99.1021]
[1747592889820,5.17411672,170.59,170.52,93.24]
[1747592890013,5.17411672,170.59,170.41,3.9506]
[1747592890209,5.17411672,170.59,170.42,185.86]
[1747592890609,14.16338904,170.58,170.42,185.86]
[1747592891021,5.8627,170.52,170.41,3.9506]
[1747592891222,92.58,170.53,170.41,93.2]
[1747592891519,5.8635,170.49,170.41,93.2]
[1747592891722,1.8989,170.51,170.41,93.2]
[1747592892314,5.8641,170.47,170.42,5.8658]
[1747592892514,98.3841,170.47,170.42,5.8658]
[1747592892714,92.52,170.47,170.41,93.2]
[1747592893221,14.16338904,170.58,170.41,93.2]
[1747592893524,189.3811,170.57,170.41,185.66]
[1747592893823,189.3811,170.57,170.42,3.86]
[1747592894016,5.8611,170.56,170.5,5.8628]
[1747592894417,195.2418,170.57,170.52,5.8624]
[1747592894918,189.3811,170.57,170.42,3.86]
[1747592895518,5.862,170.54,170.42,3.86]
[1747592895821,1.8756,170.57,170.42,3.86]
[1747592896031,5.8613,170.56,170.42,3.86]
[1747592896230,1.8756,170.57,170.42,3.86]
[1747592896526,92.32,170.56,170.42,3.86]
[1747592896928,1.8756,170.57,170.42,3.86]
[1747592897224,7.7364,170.57,170.51,5.8626]
[1747592897428,7.7364,170.57,170.49,93.18]
[1747592897621,1.8756,170.57,170.49,93.18]
[1747592898023,92.24,170.59,170.49,93.18]
[1747592898721,5.8606,170.58,170.52,5.8622]
[1747592899032,5.8606,170.58,170.49,93.18]
[1747592899629,92.24,170.59,170.48,2.0199]
[1747592899927,92.24,170.59,170.48,95.1799]
[1747592900128,5.8608,170.57,170.48,95.1799]
[1747592900323,92.12,170.65,170.48,95.1799]
[1747592900824,92.1,170.64,170.5,22.96933428]
[1747592901032,92.1,170.64,170.51,602.8285]
[1747592901334,30.7341,170.68,170.51,602.8285]
[1747592901628,122.7941,170.68,170.51,602.8285]
[1747592901929,3.7341,170.68,170.54,22.96933428]
[1747592902129,92.04,170.69,170.55,93.16]
[1747592902324,92.04,170.69,170.65,5.8577]
[1747592902524,92.04,170.69,170.51,510.7485]
[1747592902723,92.04,170.69,170.56,93.16]
[1747592902932,5.8577,170.66,170.59,5.8597]
[1747592903260,5.8577,170.66,170.56,93.16]
[1747592903446,5.858,170.65,170.59,5.86]
[1747592903651,93.16,170.68,170.56,93.16]
[1747592903949,22.96933428,170.66,170.51,510.7485]
[1747592904145,22.96933428,170.62,170.51,599.88]
[1747592904343,91.92,170.61,170.51,599.88]
[1747592905142,91.92,170.61,170.51,93.16]
[1747592905444,5.8603,170.58,170.52,5.8621]
[1747592905633,5.8603,170.58,170.51,93.16]
[1747592905835,91.92,170.61,170.51,93.16]
[1747592906433,91.92,170.61,170.48,2.0199]
[1747592906835,5.861,170.56,170.48,2.0199]
[1747592907037,118.78,170.6,170.48,2.0199]
[1747592907331,5.8606,170.58,170.53,5.8618]
[1747592907635,5.8606,170.58,170.48,2.0199]
[1747592907928,5.8606,170.58,170.53,5.8618]
[1747592908929,5.8601,170.59,170.53,5.8618]
[1747592909130,118.78,170.6,170.53,5.8618]
[1747592909631,118.78,170.6,170.48,2.0199]
[1747592910227,5.8603,170.58,170.54,5.8616]
[1747592910426,27.0,170.6,170.48,2.0199]
[1747592910628,91.62,170.6,170.48,93.6399]
[1747592910827,5.86,170.59,170.48,93.6399]
[1747592911028,91.62,170.6,170.48,93.6399]
[1747592911331,99.0193,170.62,170.56,5.8608]
[1747592911532,184.74,170.62,170.56,5.8608]
[1747592911933,93.16,170.62,170.56,5.8608]
[1747592912139,93.16,170.62,170.52,91.66]
[1747592912430,93.16,170.62,170.53,3.9495]
[1747592912633,93.16,170.62,170.56,5.861]
[1747592912934,93.16,170.62,170.53,3.9495]
[1747592913128,99.0191,170.62,170.57,5.8604]
[1747592913329,5.851,170.65,170.53,3.9495]
[1747592913634,91.48,170.64,170.53,3.9495]
[1747592913827,5.8587,170.63,170.53,3.9495]
[1747592914437,91.48,170.64,170.53,3.9495]
[1747592914635,114.44933428,170.64,170.53,3.9495]
[1747592914935,5.8594,170.61,170.56,5.861]
[1747592915635,5.8597,170.6,170.56,5.861]
[1747592916230,5.8593,170.61,170.57,5.8606]
[1747592917038,5.8593,170.61,170.53,3.9495]
[1747592917039,114.44933428,170.64,170.53,3.9495]
[1747592917236,91.48,170.64,170.48,2.0199]
[1747592917434,91.48,170.64,170.54,5.8617]
[1747592917630,14.12685127,170.63,170.54,5.8617]
[1747592918135,5.8603,170.59,170.54,5.8617]
[1747592918335,91.26,170.58,170.54,5.8617]
[1747592918932,91.26,170.58,170.48,2.0199]
[1747592919437,5.8611,170.56,170.53,5.862]
[1747592920246,5.8611,170.56,170.48,2.0199]
[1747592920644,5.8611,170.56,170.52,5.8621]
[1747592920939,5.8611,170.56,170.48,2.0199]
[1747592921237,91.26,170.58,170.48,2.0199]
[1747592921738,5.8609,170.57,170.48,2.0199]
[1747592922242,5.8601,170.59,170.48,2.0199]
[1747592922443,91.06,170.58,170.48,2.0199]
[1747592922831,96.9205,170.58,170.53,5.8618]
[1747592923027,91.06,170.58,170.53,5.8618]
[1747592923242,91.06,170.58,170.48,2.0199]
[1747592923438,91.06,170.58,170.49,91.66]
[1747592923939,105.18685127,170.58,170.48,2.0199]
[1747592924439,5.8617,170.55,170.48,2.0199]
[1747592925139,5.8611,170.56,170.52,5.8624]
[1747592925441,5.8611,170.56,170.48,2.0199]
[1747592925944,91.06,170.58,170.48,2.0199]
[1747592926135,90.9,170.57,170.48,2.0199]
[1747592926333,90.9,170.57,170.54,5.8617]
[1747592926641,90.9,170.57,170.48,2.0199]
[1747592927436,90.84,170.58,170.48,2.0199]
[1747592930041,5.8607,170.58,170.48,2.0199]
[1747592930240,90.72,170.58,170.48,2.0199]
[1747592930444,90.72,170.59,170.48,2.0199]
[1747592931240,96.5397,170.6,170.55,5.8611]
[1747592931440,96.5397,170.6,170.48,2.0199]
[1747592931741,90.68,170.6,170.52,5.8622]
[1747592931941,2.6473415,170.59,170.48,2.0199]
[1747592932145,90.68,170.6,170.48,2.0199]
[1747592932442,2.64739631,170.59,170.48,2.0199]
[1747592932646,2.64740534,170.58,170.48,2.0199]
[1747592932943,2.64740534,170.57,170.47,91.66]
[1747592933136,90.68,170.6,170.47,91.66]
[1747592933340,5.8624,170.53,170.49,5.8634]
[1747592933643,90.58,170.54,170.47,91.66]
[1747592933944,96.4418,170.54,170.47,91.66]
[1747592934245,90.58,170.54,170.47,91.66]
[1747592934743,90.58,170.54,170.51,5.8625]
[1747592935343,96.4417,170.54,170.51,5.8625]
[1747592935539,96.4417,170.54,170.47,91.66]
[1747592935540,90.58,170.54,170.44,2.0031]
[1747592936037,90.58,170.54,170.52,5.8621]
[1747592936239,90.58,170.54,170.44,2.0031]
[1747592936643,91.66,170.61,170.44,2.0031]
[1747592936843,8.50861207,170.6,170.46,14.12685127]
[1747592937036,8.50861207,170.6,170.47,92.3177]
[1747592937037,90.42,170.59,170.47,92.3177]
[1747592937238,2.64872679,170.58,170.47,1.8977]
[1747592937435,2.64872679,170.57,170.47,1.8977]
[1747592937644,5.8614,170.55,170.5,5.8628]
[1747592937945,90.42,170.59,170.47,1.8977]
[1747592938146,2.65026215,170.58,170.5,5.8628]
[1747592938346,2.65026215,170.57,170.47,1.8977]
[1747592938537,2.65027958,170.56,170.47,1.8977]
[1747592938744,5.8617,170.55,170.47,1.8977]
[1747592938944,5.8617,170.55,170.5,5.8628]
[1747592939146,5.8617,170.55,170.47,1.8977]
[1747592939853,90.42,170.59,170.47,1.8977]
[1747592940041,90.3,170.62,170.54,5.8616]
[1747592940249,90.3,170.62,170.47,1.8977]
[1747592940250,90.28,170.59,170.5,90.3]
[1747592940549,5.8609,170.57,170.5,90.3]
[1747592940746,90.26,170.59,170.5,90.3]
[1747592940948,2.65131237,170.58,170.46,90.3]
[1747592941147,2.65131237,170.58,170.5,5.863]
[1747592941450,4.59981237,170.57,170.46,90.3]
[1747592941654,5.8618,170.54,170.5,5.8628]
[1747592941847,1.9485,170.57,170.46,90.3]
[1747592942151,10.35673966,170.56,170.53,5.862]
[1747592942345,1.8448,170.56,170.53,5.862]
[1747592943252,7.7059,170.56,170.53,5.862]
[1747592943948,7.7059,170.56,170.52,5.8623]
[1747592944545,7.7059,170.56,170.53,5.8619]
[1747592944753,90.26,170.59,170.46,90.3]
[1747592945745,96.1201,170.59,170.46,90.3]
[1747592945948,90.26,170.59,170.46,90.3]
[1747592946149,90.0,170.59,170.56,5.8608]
[1747592946348,7.8219,170.61,170.52,90.3]
[1747592946847,8.511805,170.6,170.52,90.3]
[1747592947053,5.8597,170.6,170.52,90.3]
[1747592948558,5.8597,170.6,170.56,5.8608]
[1747592948853,7.8219,170.61,170.52,90.3]
[1747592949058,89.88,170.63,170.52,90.3]
[1747592949258,2.65473897,170.62,170.53,1.9965]
[1747592949456,5.8589,170.63,170.53,1.9965]
[1747592949662,6.89134256,170.68,170.54,14.12685127]
[1747592949850,2.65506748,170.67,170.55,89.84]
[1747592950050,2.65506748,170.66,170.55,89.84]
[1747592950255,6.89134256,170.68,170.62,5.8587]
[1747592950458,2.65518171,170.67,170.53,513.96080955]
[1747592950656,2.65518171,170.66,170.55,90.3]
[1747592950958,2.65518171,170.65,170.55,90.3]
[1747592951263,2.65518171,170.64,170.55,90.3]
[1747592951450,89.8,170.67,170.55,90.3]
[1747592951651,2.65329,170.66,170.55,90.3]
[1747592951857,2.65329,170.65,170.55,90.3]
[1747592952059,5.8587,170.63,170.58,5.8601]
[1747592952258,89.8,170.67,170.55,90.3]
[1747592952465,2.6530226,170.66,170.55,90.3]
[1747592952757,5.8592,170.62,170.55,90.3]
[1747592953355,5.8586,170.63,170.59,5.8599]
[1747592953562,89.8,170.67,170.55,90.3]
[1747592953762,5.8587,170.63,170.6,5.8596]
[1747592955264,5.8587,170.63,170.59,5.8599]
[1747592955464,89.8,170.67,170.55,90.3]
[1747592955764,2.65277208,170.66,170.55,90.3]
[1747592955960,5.859,170.62,170.58,5.86]
[1747592956666,5.8594,170.61,170.58,5.86]
[1747592956871,90.28,170.65,170.57,5.8607]
[1747592957062,6.50254799,170.64,170.57,5.8607]
[1747592957365,2.65244799,170.63,170.58,5.8602]
[1747592957563,3.8501,170.64,170.58,5.8602]
[1747592957755,2.6509748,170.63,170.58,5.8602]
[1747592957960,3.8501,170.64,170.55,90.3]
[1747592957961,3.8501,170.64,170.59,5.8599]
[1747592958163,2.65115929,170.63,170.59,5.8599]
[1747592958461,3.8501,170.64,170.59,5.8599]
[1747592958661,8.50975291,170.63,170.59,5.8599]
[1747592958861,5.8586,170.63,170.59,5.8599]
[1747592959069,3.8501,170.64,170.59,5.8599]
[1747592960372,2.65015449,170.63,170.58,5.8603]
[1747592960573,3.8501,170.64,170.58,5.8603]
[1747592960877,2.64997068,170.63,170.59,5.8599]
[1747592961170,89.32,170.63,170.59,5.8599]
[1747592961371,89.32,170.63,170.55,90.3]
[1747592962374,2.0079,170.64,170.55,90.3]
[1747592962570,5.8576,170.66,170.55,90.3]
[1747592962870,95.0976,170.66,170.55,90.3]
[1747592963174,95.0976,170.66,170.62,5.8587]
[1747592963373,5.8573,170.67,170.55,90.3]
[1747592963571,95.0773,170.67,170.55,90.3]
[1747592963773,95.0773,170.67,170.62,5.8588]
[1747592963971,5.8577,170.66,170.62,5.8588]
[1747592964673,89.18,170.68,170.55,90.3]